[Event "*** Titled Tuesday Blitz"]
[Site "Chess.com"]
[Date "2021.03.30"]
[Round "3"]
[White "LileKoridze"]
[Black "VladaSviridova"]
[Result "1-0"]
[WhiteElo "2504"]
[BlackElo "2243"]
[TimeControl "180+1"]
[EndTime "10:26:20 PDT"]
[Termination "LileKoridze won on time"]

1. d4 {[%clk 0:03:00.9]} 1... d5 {[%clk 0:03:00.1]} 2. c4 {[%clk 0:03:00]} 2...
c6 {[%clk 0:03:00.5]} 3. Nf3 {[%clk 0:02:59.8]} 3... Nf6 {[%clk 0:03:00.8]} 4.
Nc3 {[%clk 0:02:59.1]} 4... dxc4 {[%clk 0:03:01.1]} 5. a4 {[%clk 0:02:58.6]}
5... Bf5 {[%clk 0:03:01.3]} 6. e3 {[%clk 0:02:58.6]} 6... e6 {[%clk 0:03:01.2]}
7. Bxc4 {[%clk 0:02:59.3]} 7... Bb4 {[%clk 0:03:01.9]} 8. O-O {[%clk 0:02:59.5]}
8... O-O {[%clk 0:03:02.3]} 9. Qe2 {[%clk 0:03:00]} 9... Nbd7 {[%clk 0:03:02.6]}
10. e4 {[%clk 0:02:59.3]} 10... Bg6 {[%clk 0:03:02.9]} 11. Bg5 {[%clk
0:02:55.7]} 11... Qa5 {[%clk 0:02:53.5]} 12. e5 {[%clk 0:02:49.9]} 12... Nd5
{[%clk 0:02:33.8]} 13. Ne4 {[%clk 0:02:49.6]} 13... h6 {[%clk 0:02:15.2]} 14.
Bh4 {[%clk 0:02:49.2]} 14... N7b6 {[%clk 0:02:03.9]} 15. Bd3 {[%clk 0:02:48.3]}
15... Nf4 {[%clk 0:01:58.3]} 16. Qe3 {[%clk 0:02:42.9]} 16... Nxd3 {[%clk
0:01:58.4]} 17. Qxd3 {[%clk 0:02:43.1]} 17... Qd5 {[%clk 0:01:43.7]} 18. Nf6+
{[%clk 0:02:33.9]} 18... gxf6 {[%clk 0:01:41.5]} 19. Qe3 {[%clk 0:02:34.5]}
19... Kh7 {[%clk 0:00:59.8]} 20. Bxf6 {[%clk 0:02:31.9]} 20... Nd7 {[%clk
0:00:57.2]} 21. Ng5+ {[%clk 0:02:31.8]} 21... Kg8 {[%clk 0:00:37.1]} 22. Ne4
{[%clk 0:02:17.9]} 22... Kh7 {[%clk 0:00:05.7]} 23. f3 {[%clk 0:02:09]} 23...
Rfe8 {[%clk 0:00:04]} 24. Qf4 {[%clk 0:02:04.5]} 24... Be7 {[%clk 0:00:02.7]}
25. Qh4 {[%clk 0:01:57.9]} 25... Bxf6 {[%clk 0:00:02.3]} 26. exf6 {[%clk
0:01:57]} 1-0

[Event "*** Titled Tuesday Blitz"]
[Site "Chess.com"]
[Date "2021.03.30"]
[Round "3"]
[White "Politov_Pavel"]
[Black "SirStrateg"]
[Result "0-1"]
[WhiteElo "2385"]
[BlackElo "2570"]
[TimeControl "180+1"]
[EndTime "10:26:22 PDT"]
[Termination "SirStrateg won by checkmate"]

1. d4 {[%clk 0:02:56.3]} 1... Nf6 {[%clk 0:03:00]} 2. Nf3 {[%clk 0:02:55.4]}
2... e6 {[%clk 0:02:59.9]} 3. Bg5 {[%clk 0:02:54.5]} 3... h6 {[%clk 0:02:59.7]}
4. Bh4 {[%clk 0:02:53.7]} 4... Nc6 {[%clk 0:02:59.6]} 5. Nbd2 {[%clk 0:02:52.8]}
5... g5 {[%clk 0:02:59.7]} 6. Bg3 {[%clk 0:02:51.6]} 6... Nh5 {[%clk 0:03:00.4]}
7. c3 {[%clk 0:02:45.6]} 7... Bg7 {[%clk 0:02:55.3]} 8. e4 {[%clk 0:02:43.7]}
8... d5 {[%clk 0:02:52.6]} 9. Bd3 {[%clk 0:02:08.8]} 9... Nxg3 {[%clk
0:02:41.3]} 10. hxg3 {[%clk 0:02:04.8]} 10... g4 {[%clk 0:02:40.3]} 11. Nh4
{[%clk 0:01:58.9]} 11... dxe4 {[%clk 0:02:30]} 12. Qxg4 {[%clk 0:01:53.2]} 12...
Bxd4 {[%clk 0:02:08.4]} 13. Bxe4 {[%clk 0:01:15.2]} 13... Bxf2+ {[%clk 0:02:08]}
14. Kf1 {[%clk 0:01:10]} 14... Qxd2 {[%clk 0:02:05.9]} 15. Rd1 {[%clk
0:01:07.5]} 15... Qg5 {[%clk 0:02:01.2]} 16. Bxc6+ {[%clk 0:00:37.4]} 16... bxc6
{[%clk 0:01:59.9]} 17. Qe4 {[%clk 0:00:37.2]} 17... Bxg3 {[%clk 0:01:52.6]} 18.
Qxc6+ {[%clk 0:00:34.1]} 18... Ke7 {[%clk 0:01:53]} 19. Nf3 {[%clk 0:00:11.7]}
19... Qe3 {[%clk 0:01:50]} 20. Rd2 {[%clk 0:00:08.9]} 20... Rd8 {[%clk
0:01:42.4]} 21. Rh3 {[%clk 0:00:03.1]} 21... Rxd2 {[%clk 0:01:40.9]} 22. Rxg3
{[%clk 0:00:03.7]} 22... Qf2# {[%clk 0:01:41.2]} 0-1

[Event "*** Titled Tuesday Blitz"]
[Site "Chess.com"]
[Date "2021.03.30"]
[Round "3"]
[White "kingofthenil"]
[Black "MartinHollan"]
[Result "1-0"]
[WhiteElo "2752"]
[BlackElo "2422"]
[TimeControl "180+1"]
[EndTime "10:26:37 PDT"]
[Termination "kingofthenil won by checkmate"]

1. e4 {[%clk 0:03:00.9]} 1... c5 {[%clk 0:02:59.6]} 2. d3 {[%clk 0:02:58.1]}
2... Nc6 {[%clk 0:02:58.9]} 3. g3 {[%clk 0:02:59]} 3... g6 {[%clk 0:02:58.9]} 4.
Bg2 {[%clk 0:02:59.5]} 4... Bg7 {[%clk 0:02:59.5]} 5. f4 {[%clk 0:02:59.6]} 5...
d6 {[%clk 0:03:00]} 6. Nf3 {[%clk 0:02:59.7]} 6... e6 {[%clk 0:02:59.9]} 7. O-O
{[%clk 0:03:00.6]} 7... Nge7 {[%clk 0:02:59.8]} 8. c3 {[%clk 0:03:01.3]} 8...
O-O {[%clk 0:03:00.2]} 9. Be3 {[%clk 0:03:02]} 9... b6 {[%clk 0:02:59.3]} 10. d4
{[%clk 0:03:01.9]} 10... cxd4 {[%clk 0:02:53.7]} 11. cxd4 {[%clk 0:03:02.8]}
11... d5 {[%clk 0:02:49]} 12. e5 {[%clk 0:03:02.9]} 12... Nf5 {[%clk 0:02:49]}
13. Bf2 {[%clk 0:03:02.6]} 13... h5 {[%clk 0:02:48.9]} 14. Nc3 {[%clk
0:03:01.3]} 14... Ba6 {[%clk 0:02:47.9]} 15. Re1 {[%clk 0:03:01.8]} 15... Rc8
{[%clk 0:02:47.8]} 16. h3 {[%clk 0:03:01.4]} 16... Nh6 {[%clk 0:02:41.6]} 17.
Rc1 {[%clk 0:02:55.5]} 17... Nb4 {[%clk 0:02:39]} 18. Qa4 {[%clk 0:02:54.6]}
18... Qe7 {[%clk 0:02:34.6]} 19. a3 {[%clk 0:02:54.1]} 19... Nd3 {[%clk
0:02:27.4]} 20. Qxa6 {[%clk 0:02:53.2]} 20... Nxe1 {[%clk 0:02:19.3]} 21. Rxe1
{[%clk 0:02:46.7]} 21... Rc4 {[%clk 0:02:10.7]} 22. Bf1 {[%clk 0:02:43.1]} 22...
Rcc8 {[%clk 0:02:10.7]} 23. Bd3 {[%clk 0:02:39.8]} 23... Qd7 {[%clk 0:02:00.3]}
24. Kg2 {[%clk 0:02:33.3]} 24... Rfe8 {[%clk 0:01:56.1]} 25. Bb5 {[%clk
0:02:25.3]} 25... Qd8 {[%clk 0:01:56.3]} 26. Bxe8 {[%clk 0:02:25]} 26... Qxe8
{[%clk 0:01:57.2]} 27. Qxa7 {[%clk 0:02:25.1]} 27... Nf5 {[%clk 0:01:54.6]} 28.
Re2 {[%clk 0:02:22.5]} 28... b5 {[%clk 0:01:53.6]} 29. Qa6 {[%clk 0:02:20]}
29... Rb8 {[%clk 0:01:48.7]} 30. Rc2 {[%clk 0:02:19.2]} 30... Bf8 {[%clk
0:01:44.9]} 31. Nd1 {[%clk 0:02:15.7]} 31... b4 {[%clk 0:01:38.9]} 32. axb4
{[%clk 0:02:13.4]} 32... Bxb4 {[%clk 0:01:37.3]} 33. Ne3 {[%clk 0:02:13.1]}
33... Ne7 {[%clk 0:01:32.4]} 34. g4 {[%clk 0:02:02.9]} 34... Ra8 {[%clk
0:01:31.9]} 35. Qb6 {[%clk 0:01:59.2]} 35... Rb8 {[%clk 0:01:29.6]} 36. Qa6
{[%clk 0:01:58.9]} 36... Ra8 {[%clk 0:01:28.9]} 37. Qd3 {[%clk 0:01:58.2]} 37...
Ra1 {[%clk 0:01:20.8]} 38. gxh5 {[%clk 0:01:41]} 38... gxh5 {[%clk 0:01:20.5]}
39. f5 {[%clk 0:01:41.3]} 39... exf5 {[%clk 0:01:09.7]} 40. Nxf5 {[%clk
0:01:42.2]} 40... Ng6 {[%clk 0:01:09.6]} 41. Be3 {[%clk 0:01:37.2]} 41... Qa4
{[%clk 0:00:55.3]} 42. Rc8+ {[%clk 0:01:31]} 42... Kh7 {[%clk 0:00:54.7]} 43.
Ng5# {[%clk 0:01:30.2]} 1-0

[Event "*** Titled Tuesday Blitz"]
[Site "Chess.com"]
[Date "2021.03.30"]
[Round "3"]
[White "Spring199"]
[Black "Nozdrachev_Leonid"]
[Result "1/2-1/2"]
[WhiteElo "2347"]
[BlackElo "2536"]
[TimeControl "180+1"]
[EndTime "10:26:47 PDT"]
[Termination "Game drawn - insufficient material"]

1. d4 {[%clk 0:03:00.9]} 1... Nf6 {[%clk 0:02:57.7]} 2. c4 {[%clk 0:02:59.8]}
2... e6 {[%clk 0:02:57.3]} 3. Nc3 {[%clk 0:02:59]} 3... Bb4 {[%clk 0:02:55.1]}
4. e3 {[%clk 0:02:58.4]} 4... O-O {[%clk 0:02:54.1]} 5. Ne2 {[%clk 0:02:58.2]}
5... d5 {[%clk 0:02:52.8]} 6. a3 {[%clk 0:02:58.3]} 6... Bd6 {[%clk 0:02:51.9]}
7. Ng3 {[%clk 0:02:53.5]} 7... c6 {[%clk 0:02:49.2]} 8. Bd3 {[%clk 0:02:53.2]}
8... e5 {[%clk 0:02:49.1]} 9. dxe5 {[%clk 0:02:51.3]} 9... Bxe5 {[%clk 0:02:50]}
10. O-O {[%clk 0:02:49.1]} 10... Re8 {[%clk 0:02:47.4]} 11. cxd5 {[%clk
0:02:47.8]} 11... cxd5 {[%clk 0:02:46.9]} 12. Nce2 {[%clk 0:02:39]} 12... Nc6
{[%clk 0:02:46.5]} 13. Rb1 {[%clk 0:02:35.8]} 13... a5 {[%clk 0:02:45.2]} 14. b4
{[%clk 0:02:34.3]} 14... axb4 {[%clk 0:02:44.1]} 15. axb4 {[%clk 0:02:35.2]}
15... Be6 {[%clk 0:02:38]} 16. Bb2 {[%clk 0:02:27.5]} 16... Bxb2 {[%clk
0:02:34.8]} 17. Rxb2 {[%clk 0:02:26.8]} 17... Ne5 {[%clk 0:02:35.7]} 18. Nd4
{[%clk 0:02:19]} 18... g6 {[%clk 0:02:29.6]} 19. Qb1 {[%clk 0:02:08.8]} 19...
Nc4 {[%clk 0:02:24.5]} 20. Ra2 {[%clk 0:02:02.9]} 20... Rxa2 {[%clk 0:02:17.6]}
21. Qxa2 {[%clk 0:02:02.3]} 21... Qa8 {[%clk 0:02:18]} 22. Ra1 {[%clk
0:02:00.4]} 22... Qxa2 {[%clk 0:02:16]} 23. Rxa2 {[%clk 0:02:01.3]} 23... Rc8
{[%clk 0:02:11]} 24. h4 {[%clk 0:01:59.6]} 24... Ne5 {[%clk 0:02:06.3]} 25. Bf1
{[%clk 0:01:51.2]} 25... Rc1 {[%clk 0:02:05.7]} 26. Ra8+ {[%clk 0:01:43.7]}
26... Kg7 {[%clk 0:02:04.8]} 27. Nxe6+ {[%clk 0:01:43.2]} 27... fxe6 {[%clk
0:02:04.3]} 28. Ra7 {[%clk 0:01:42.5]} 28... Rc7 {[%clk 0:02:02.2]} 29. Ba6
{[%clk 0:01:41.2]} 29... Nc6 {[%clk 0:01:51]} 30. Rxb7 {[%clk 0:01:39.9]} 30...
Rxb7 {[%clk 0:01:51.8]} 31. Bxb7 {[%clk 0:01:40.8]} 31... Nxb4 {[%clk
0:01:52.4]} 32. e4 {[%clk 0:01:37.4]} 32... dxe4 {[%clk 0:01:49.5]} 33. Nxe4
{[%clk 0:01:36.6]} 33... Nxe4 {[%clk 0:01:49.3]} 34. Bxe4 {[%clk 0:01:37.5]}
34... Kf6 {[%clk 0:01:49.6]} 35. g3 {[%clk 0:01:36.9]} 35... h6 {[%clk
0:01:46.6]} 36. Kg2 {[%clk 0:01:36.1]} 36... g5 {[%clk 0:01:46.8]} 37. hxg5+
{[%clk 0:01:35.2]} 37... hxg5 {[%clk 0:01:47.7]} 38. f4 {[%clk 0:01:34.4]} 38...
Na2 {[%clk 0:01:36.1]} 39. Kf3 {[%clk 0:01:28.5]} 39... Nc3 {[%clk 0:01:34.4]}
40. Bc6 {[%clk 0:01:26.8]} 40... Nb1 {[%clk 0:01:29.2]} 41. Kg4 {[%clk
0:01:26.2]} 41... gxf4 {[%clk 0:01:27.9]} 42. Kxf4 {[%clk 0:01:25.6]} 42... Nc3
{[%clk 0:01:25.7]} 43. g4 {[%clk 0:01:23.2]} 43... Ne2+ {[%clk 0:01:25.4]} 44.
Ke3 {[%clk 0:01:21.3]} 44... Nc3 {[%clk 0:01:22.4]} 45. Kf4 {[%clk 0:01:20]}
45... Nd5+ {[%clk 0:01:18]} 46. Bxd5 {[%clk 0:01:15.9]} 46... exd5 {[%clk
0:01:18.9]} 47. g5+ {[%clk 0:01:15.1]} 47... Kg6 {[%clk 0:01:19.2]} 48. Ke5
{[%clk 0:01:14.7]} 48... Kxg5 {[%clk 0:01:20.1]} 49. Kxd5 {[%clk 0:01:14.4]}
1/2-1/2

[Event "*** Titled Tuesday Blitz"]
[Site "Chess.com"]
[Date "2021.03.30"]
[Round "3"]
[White "LamaChampetre"]
[Black "MergenKakabaev"]
[Result "0-1"]
[WhiteElo "2223"]
[BlackElo "2367"]
[TimeControl "180+1"]
[EndTime "10:26:47 PDT"]
[Termination "MergenKakabaev won by resignation"]

1. d4 {[%clk 0:03:00.9]} 1... d5 {[%clk 0:02:59.6]} 2. c4 {[%clk 0:03:00.6]}
2... c6 {[%clk 0:03:00]} 3. Nf3 {[%clk 0:03:00.8]} 3... Nf6 {[%clk 0:02:59.8]}
4. e3 {[%clk 0:03:01.2]} 4... e6 {[%clk 0:03:00.1]} 5. Nc3 {[%clk 0:03:01.1]}
5... Nbd7 {[%clk 0:03:00.2]} 6. b3 {[%clk 0:02:58.4]} 6... Be7 {[%clk
0:02:59.5]} 7. Qc2 {[%clk 0:02:57.3]} 7... b6 {[%clk 0:02:59.6]} 8. Be2 {[%clk
0:02:57]} 8... Bb7 {[%clk 0:02:59.1]} 9. O-O {[%clk 0:02:57.2]} 9... O-O {[%clk
0:02:58.4]} 10. e4 {[%clk 0:02:56.8]} 10... dxe4 {[%clk 0:02:58.2]} 11. Nxe4
{[%clk 0:02:56.7]} 11... c5 {[%clk 0:02:58.6]} 12. Nxf6+ {[%clk 0:02:50.5]}
12... Bxf6 {[%clk 0:02:58]} 13. Bb2 {[%clk 0:02:44.7]} 13... cxd4 {[%clk
0:02:53.3]} 14. Nxd4 {[%clk 0:02:42.2]} 14... Qc7 {[%clk 0:02:39.5]} 15. Nb5
{[%clk 0:02:38.1]} 15... Qc5 {[%clk 0:02:34.2]} 16. Ba3 {[%clk 0:02:08.3]} 16...
Qg5 {[%clk 0:02:32]} 17. f3 {[%clk 0:01:58.7]} 17... Bxa1 {[%clk 0:02:12.9]} 18.
Rxa1 {[%clk 0:01:52.8]} 18... Rfd8 {[%clk 0:02:02.1]} 19. Bd3 {[%clk 0:01:45.9]}
19... Nf6 {[%clk 0:01:57.7]} 20. Re1 {[%clk 0:01:43.9]} 20... a6 {[%clk
0:01:55.9]} 21. Bc1 {[%clk 0:01:04.7]} 21... Qh4 {[%clk 0:01:50.1]} 22. g3
{[%clk 0:01:00.7]} 22... Qh5 {[%clk 0:01:48.6]} 23. Nc3 {[%clk 0:00:33.7]} 23...
Qxf3 {[%clk 0:01:46.4]} 24. Be4 {[%clk 0:00:19.6]} 24... Nxe4 {[%clk 0:01:43.7]}
25. Nxe4 {[%clk 0:00:19.7]} 25... Rd4 {[%clk 0:01:35.1]} 26. Re3 {[%clk
0:00:08.5]} 26... Rd1+ {[%clk 0:01:32.4]} 0-1

[Event "*** Titled Tuesday Blitz"]
[Site "Chess.com"]
[Date "2021.03.30"]
[Round "3"]
[White "Zmeeed63"]
[Black "AlexOstrovskiy"]
[Result "0-1"]
[WhiteElo "2337"]
[BlackElo "2736"]
[TimeControl "180+1"]
[EndTime "10:26:54 PDT"]
[Termination "AlexOstrovskiy won by resignation"]

1. d4 {[%clk 0:03:00.9]} 1... Nf6 {[%clk 0:02:59.5]} 2. c4 {[%clk 0:03:01.3]}
2... e5 {[%clk 0:02:59]} 3. dxe5 {[%clk 0:03:00.3]} 3... Ng4 {[%clk 0:02:59.2]}
4. Bf4 {[%clk 0:03:00.7]} 4... Nc6 {[%clk 0:02:57.4]} 5. Nf3 {[%clk 0:03:00.3]}
5... Bb4+ {[%clk 0:02:57.9]} 6. Nbd2 {[%clk 0:03:00]} 6... Qe7 {[%clk 0:02:58]}
7. e3 {[%clk 0:02:58.5]} 7... Ngxe5 {[%clk 0:02:57.4]} 8. Nxe5 {[%clk
0:02:59.4]} 8... Nxe5 {[%clk 0:02:57.8]} 9. Be2 {[%clk 0:02:59.7]} 9... a5
{[%clk 0:02:57.3]} 10. O-O {[%clk 0:02:59.5]} 10... d6 {[%clk 0:02:57.6]} 11.
Nb3 {[%clk 0:02:58.6]} 11... a4 {[%clk 0:02:57.8]} 12. Nd4 {[%clk 0:02:58.4]}
12... O-O {[%clk 0:02:51.9]} 13. Qc2 {[%clk 0:02:36.2]} 13... Bc5 {[%clk
0:02:43.1]} 14. Rfd1 {[%clk 0:02:25.7]} 14... g6 {[%clk 0:02:29]} 15. h3 {[%clk
0:02:18.9]} 15... Re8 {[%clk 0:02:12]} 16. Rab1 {[%clk 0:02:10.6]} 16... Nc6
{[%clk 0:02:02.1]} 17. Nxc6 {[%clk 0:01:51.3]} 17... bxc6 {[%clk 0:02:03]} 18.
Qc3 {[%clk 0:01:51.3]} 18... Rb8 {[%clk 0:01:56]} 19. Bh6 {[%clk 0:01:27]} 19...
Qe5 {[%clk 0:01:53.1]} 20. Qxe5 {[%clk 0:01:23.9]} 20... Rxe5 {[%clk 0:01:54]}
21. Bf3 {[%clk 0:01:21.4]} 21... Bf5 {[%clk 0:01:52.8]} 22. Ra1 {[%clk
0:01:13.5]} 22... Rxb2 {[%clk 0:01:51.1]} 23. Bxc6 {[%clk 0:01:13.7]} 23... a3
{[%clk 0:01:45.2]} 24. Bf4 {[%clk 0:01:11.8]} 24... Re6 {[%clk 0:01:25.8]} 25.
Bd7 {[%clk 0:01:01.2]} 25... Re4 {[%clk 0:01:20.9]} 26. Bxf5 {[%clk 0:00:57.2]}
26... gxf5 {[%clk 0:01:21.8]} 27. Rdc1 {[%clk 0:00:31.2]} 27... f6 {[%clk
0:01:15.7]} 28. Rc3 {[%clk 0:00:25.2]} 28... Kf7 {[%clk 0:01:07.6]} 29. f3
{[%clk 0:00:24.7]} 29... Rxf4 {[%clk 0:01:07.7]} 0-1

[Event "*** Titled Tuesday Blitz"]
[Site "Chess.com"]
[Date "2021.03.30"]
[Round "3"]
[White "Nesty_Javi_Chess"]
[Black "ChainsOfFantasia"]
[Result "1-0"]
[WhiteElo "2615"]
[BlackElo "2419"]
[TimeControl "180+1"]
[EndTime "10:26:59 PDT"]
[Termination "Nesty_Javi_Chess won by resignation"]

1. e4 {[%clk 0:03:00.9]} 1... e6 {[%clk 0:02:59.9]} 2. d4 {[%clk 0:03:00.1]}
2... d5 {[%clk 0:03:00.8]} 3. Nd2 {[%clk 0:03:00.6]} 3... c5 {[%clk 0:02:59.6]}
4. exd5 {[%clk 0:02:59.9]} 4... Qxd5 {[%clk 0:03:00.5]} 5. Ngf3 {[%clk
0:03:00.8]} 5... cxd4 {[%clk 0:03:00.4]} 6. Bc4 {[%clk 0:03:01.7]} 6... Qd7
{[%clk 0:03:00.8]} 7. O-O {[%clk 0:03:02.4]} 7... Nc6 {[%clk 0:03:01.3]} 8. Nb3
{[%clk 0:03:02.8]} 8... a6 {[%clk 0:03:02.2]} 9. Nbxd4 {[%clk 0:03:03.4]} 9...
Nxd4 {[%clk 0:03:03.1]} 10. Qxd4 {[%clk 0:03:04.1]} 10... Qxd4 {[%clk
0:03:03.3]} 11. Nxd4 {[%clk 0:03:05]} 11... Nf6 {[%clk 0:03:03.8]} 12. Bf4
{[%clk 0:03:05.6]} 12... b5 {[%clk 0:03:03.9]} 13. Bb3 {[%clk 0:03:05.1]} 13...
Bb7 {[%clk 0:03:04]} 14. Rad1 {[%clk 0:03:05.7]} 14... Be7 {[%clk 0:03:03]} 15.
Rfe1 {[%clk 0:03:05.1]} 15... O-O {[%clk 0:03:03.4]} 16. Nxe6 {[%clk 0:02:51.2]}
16... fxe6 {[%clk 0:02:36.9]} 17. Rxe6 {[%clk 0:02:52.1]} 17... Kf7 {[%clk
0:01:05.2]} 18. Rb6+ {[%clk 0:01:51.5]} 18... Bd5 {[%clk 0:01:00.3]} 19. Rxd5
{[%clk 0:01:31.7]} 19... Nxd5 {[%clk 0:01:01.2]} 20. Bxd5+ {[%clk 0:01:32.1]}
20... Ke8 {[%clk 0:00:59]} 21. Bxa8 {[%clk 0:01:09.4]} 21... Rxf4 {[%clk
0:00:51]} 22. Rxa6 {[%clk 0:01:08.9]} 22... Rc4 {[%clk 0:00:41.2]} 23. c3 {[%clk
0:01:02.7]} 23... b4 {[%clk 0:00:38.7]} 24. Bd5 {[%clk 0:00:58.5]} 24... Rc5
{[%clk 0:00:20.9]} 25. c4 {[%clk 0:00:58.8]} 1-0

[Event "*** Titled Tuesday Blitz"]
[Site "Chess.com"]
[Date "2021.03.30"]
[Round "3"]
[White "Lion-Al-Messi"]
[Black "mamonika"]
[Result "1-0"]
[WhiteElo "2488"]
[BlackElo "2046"]
[TimeControl "180+1"]
[EndTime "10:27:02 PDT"]
[Termination "Lion-Al-Messi won by resignation"]

1. e4 {[%clk 0:03:00.9]} 1... e5 {[%clk 0:02:52]} 2. Nf3 {[%clk 0:03:00.6]} 2...
Nc6 {[%clk 0:02:52.1]} 3. Bb5 {[%clk 0:03:01.2]} 3... a6 {[%clk 0:02:52]} 4. Ba4
{[%clk 0:03:01.3]} 4... Nf6 {[%clk 0:02:46.3]} 5. O-O {[%clk 0:03:01.1]} 5... b5
{[%clk 0:02:45]} 6. Bb3 {[%clk 0:03:00.6]} 6... Bc5 {[%clk 0:02:44.9]} 7. c3
{[%clk 0:02:59.4]} 7... d6 {[%clk 0:02:43.7]} 8. a4 {[%clk 0:02:59.6]} 8... Rb8
{[%clk 0:02:29]} 9. axb5 {[%clk 0:02:57.7]} 9... axb5 {[%clk 0:02:29.2]} 10. d4
{[%clk 0:02:58.2]} 10... Bb6 {[%clk 0:02:23.7]} 11. dxe5 {[%clk 0:02:52.9]}
11... Nxe5 {[%clk 0:02:20.1]} 12. Nxe5 {[%clk 0:02:52.3]} 12... dxe5 {[%clk
0:02:20.5]} 13. Qxd8+ {[%clk 0:02:52.9]} 13... Kxd8 {[%clk 0:02:18]} 14. Bxf7
{[%clk 0:02:53.8]} 14... Nxe4 {[%clk 0:02:12.2]} 15. Be3 {[%clk 0:02:33.4]}
15... Rf8 {[%clk 0:01:58.7]} 16. Bd5 {[%clk 0:02:21.9]} 16... Nf6 {[%clk
0:01:57.6]} 17. Bc6 {[%clk 0:02:14.6]} 17... Bxe3 {[%clk 0:01:57]} 18. fxe3
{[%clk 0:02:15.5]} 18... Bd7 {[%clk 0:01:39.3]} 19. Bxd7 {[%clk 0:02:13]} 19...
Nxd7 {[%clk 0:01:37.9]} 20. Nd2 {[%clk 0:02:05.4]} 20... Ke7 {[%clk 0:01:30.5]}
21. Ne4 {[%clk 0:02:04.3]} 21... b4 {[%clk 0:01:22.2]} 22. c4 {[%clk 0:02:03.5]}
22... Nf6 {[%clk 0:01:16.4]} 23. Nc5 {[%clk 0:01:55.9]} 23... Kd6 {[%clk
0:00:49.8]} 24. Nd3 {[%clk 0:01:39.4]} 24... e4 {[%clk 0:00:33.8]} 25. Ra6+
{[%clk 0:01:39.2]} 25... c6 {[%clk 0:00:31.5]} 26. c5+ {[%clk 0:01:40.1]} 26...
Kc7 {[%clk 0:00:27.8]} 27. Ne5 {[%clk 0:01:33.4]} 27... Rfe8 {[%clk 0:00:18]}
28. Nxc6 {[%clk 0:01:20.4]} 28... Rb5 {[%clk 0:00:17.2]} 29. Nd4 {[%clk
0:01:15]} 29... Rxc5 {[%clk 0:00:15.9]} 30. Ne6+ {[%clk 0:01:14]} 30... Kd7
{[%clk 0:00:14.3]} 31. Nxc5+ {[%clk 0:01:13.5]} 1-0

[Event "*** Titled Tuesday Blitz"]
[Site "Chess.com"]
[Date "2021.03.30"]
[Round "3"]
[White "NishaOnYoutube"]
[Black "dennisodessa"]
[Result "0-1"]
[WhiteElo "2150"]
[BlackElo "2340"]
[TimeControl "180+1"]
[EndTime "10:27:03 PDT"]
[Termination "dennisodessa won by checkmate"]

1. e4 {[%clk 0:03:00.9]} 1... e6 {[%clk 0:02:59.5]} 2. d4 {[%clk 0:03:00.4]}
2... d5 {[%clk 0:02:59.9]} 3. Bd3 {[%clk 0:03:01]} 3... dxe4 {[%clk 0:02:59.9]}
4. Bxe4 {[%clk 0:03:01.9]} 4... Nf6 {[%clk 0:03:00.8]} 5. Bf3 {[%clk 0:03:02.2]}
5... Nbd7 {[%clk 0:03:01.7]} 6. Nc3 {[%clk 0:02:58]} 6... Bb4 {[%clk 0:02:54.5]}
7. Ne2 {[%clk 0:02:57.3]} 7... O-O {[%clk 0:02:54.6]} 8. O-O {[%clk 0:02:56.7]}
8... e5 {[%clk 0:02:54.7]} 9. a3 {[%clk 0:02:19.8]} 9... Be7 {[%clk 0:02:51.7]}
10. g3 {[%clk 0:02:10.8]} 10... c6 {[%clk 0:02:47.7]} 11. Bg2 {[%clk 0:02:08.1]}
11... Qc7 {[%clk 0:02:47.7]} 12. Bg5 {[%clk 0:02:00.6]} 12... Rd8 {[%clk
0:02:47]} 13. dxe5 {[%clk 0:01:48.8]} 13... Nxe5 {[%clk 0:02:47]} 14. Qc1 {[%clk
0:01:49.2]} 14... Bg4 {[%clk 0:02:41.6]} 15. Qe3 {[%clk 0:01:39.7]} 15... h6
{[%clk 0:02:40.9]} 16. Bf4 {[%clk 0:01:34.3]} 16... Bd6 {[%clk 0:02:40.5]} 17.
b3 {[%clk 0:01:22.5]} 17... Re8 {[%clk 0:02:38.2]} 18. Kh1 {[%clk 0:00:47]}
18... Rad8 {[%clk 0:02:24.5]} 19. h3 {[%clk 0:00:39.8]} 19... Bf5 {[%clk
0:02:15.5]} 20. Nd4 {[%clk 0:00:33.6]} 20... Bg6 {[%clk 0:02:12.3]} 21. Rad1
{[%clk 0:00:27.1]} 21... Nd3 {[%clk 0:01:58]} 22. Bxd6 {[%clk 0:00:22.6]} 22...
Qxd6 {[%clk 0:01:58.6]} 23. Qd2 {[%clk 0:00:04.1]} 23... Qxd4 {[%clk 0:01:51.7]}
24. cxd3 {[%clk 0:00:05]} 24... Qxd3 {[%clk 0:01:51.4]} 25. Qxd3 {[%clk
0:00:04.8]} 25... Rxd3 {[%clk 0:01:51.8]} 26. Rxd3 {[%clk 0:00:04.9]} 26... Bxd3
{[%clk 0:01:52.7]} 27. Rc1 {[%clk 0:00:03.6]} 27... Kf8 {[%clk 0:01:48.8]} 28.
Bf3 {[%clk 0:00:03.9]} 28... Ne4 {[%clk 0:01:48.7]} 29. Kg2 {[%clk 0:00:04.3]}
29... Nd2 {[%clk 0:01:47.4]} 30. Bd1 {[%clk 0:00:03.3]} 30... Re1 {[%clk
0:01:45.4]} 31. b4 {[%clk 0:00:03]} 31... Bf1+ {[%clk 0:01:40.8]} 32. Kh2 {[%clk
0:00:02]} 32... Nf3+ {[%clk 0:01:41.5]} 33. Kh1 {[%clk 0:00:01.5]} 33... Bxh3#
{[%clk 0:01:39.9]} 0-1